bitfinex-derivatives/quotes_SOLF0:USTF0_20251020
["timestamp","ask_amount","ask_price","bid_price","bid_amount"]
[1760934108619,1.94,190.8,190.71,7.4777]
[1760934108818,1.94,190.8,190.71,7.5677]
[1760934109721,6.6558,190.8,190.71,7.5677]
[1760934110321,1.94,190.8,190.71,4.7177]
[1760934110523,1.94,190.87,190.73,2.85]
[1760934111221,15.98770602,190.87,190.8,2.85]
[1760934111728,1.94,190.92,190.8,2.85]
[1760934111924,17.75546982,190.92,190.82,2.85]
[1760934112121,1.94,190.92,190.82,2.85]
[1760934112521,6.6536,190.89,190.82,2.85]
[1760934113327,1.94,190.89,190.82,2.85]
[1760934113723,20.61116133,190.92,190.77,2.85]
[1760934113724,1.94,190.91,190.77,2.85]
[1760934114529,1.94,190.91,190.79,2.85]
[1760934114727,6.6533,190.91,190.79,2.85]
[1760934115924,6.6533,190.91,190.8,4.7158]
[1760934117036,6.97831157,190.88,190.79,2.85]
[1760934117637,1.94,190.88,190.79,7.566]
[1760934117838,4.7141,190.87,190.79,2.85]
[1760934118730,5.03831157,190.86,190.79,2.85]
[1760934118932,1.94,190.85,190.76,4.7166]
[1760934119441,6.6546,190.85,190.75,2.85]
[1760934121036,6.6546,190.85,190.75,7.567]
[1760934122437,1.94,190.82,190.75,2.85]
[1760934122633,6.97831157,190.82,190.75,2.85]
[1760934123039,1.94,190.8,190.71,2.85]
[1760934123239,5.03831157,190.78,190.71,2.85]
[1760934123436,1.94,190.77,190.66,2.85]
[1760934123639,6.6566,190.77,190.68,4.7187]
[1760934123837,6.6566,190.77,190.66,2.85]
[1760934124235,1.94,190.76,190.66,2.85]
[1760934124439,5.03831157,190.74,190.66,2.85]
[1760934124740,1.94,190.73,190.66,2.85]
[1760934125432,6.52443702,190.83,190.66,2.85]
[1760934125433,1.94,190.79,190.66,2.85]
[1760934125631,9.78665554,190.86,190.66,2.85]
[1760934125632,6.97831157,190.83,190.66,2.85]
[1760934126039,1.94,190.81,190.66,2.85]
[1760934126238,5.03831157,190.83,190.66,2.85]
[1760934126431,1.94,190.78,190.66,2.85]
[1760934126639,1.94,190.74,190.66,2.85]
[1760934127938,6.6573,190.74,190.66,2.85]
[1760934129042,1.94,190.74,190.67,4.7189]
[1760934130834,5.03831157,190.75,190.67,4.7189]
[1760934131740,9.75501157,190.77,190.67,4.7189]
[1760934132141,5.03831157,190.77,190.68,2.85]
[1760934132342,5.03831157,190.77,190.69,4.7185]
[1760934133344,1.94,190.78,190.69,4.7185]
[1760934133843,1.94,190.78,190.7,2.64]
[1760934134040,4.89332777,190.85,190.7,3.68]
[1760934134241,1.94,190.87,190.71,2.64]
[1760934134544,1.94,190.87,190.68,27.13831157]
[1760934134545,1.94,190.87,190.73,2.64]
[1760934134739,1.94,190.89,190.73,2.64]
[1760934135346,1.94,190.89,190.69,5.03831157]
[1760934135347,4.7138,190.88,190.78,7.3562]
[1760934135846,1.94,190.89,190.78,7.3562]
[1760934136540,1.94,190.89,190.78,2.64]
[1760934136740,9.93163934,190.9,190.78,2.64]
[1760934136948,1.94,190.86,190.78,2.64]
[1760934138042,1.94,190.91,190.8,2.67]
[1760934138240,25.5044891,190.92,190.72,5.03831157]
[1760934138241,1.94,190.87,190.76,2.67]
[1760934138444,1.94,190.87,190.67,6.23475639]
[1760934138445,1.94,190.84,190.75,4.7168]
[1760934138645,6.97831157,190.84,190.75,4.7168]
[1760934139044,1.94,190.79,190.68,2.67]
[1760934139543,1.94,190.79,190.7,4.7181]
[1760934139748,1.94,190.82,190.71,2.67]
[1760934141042,1.94,190.82,190.72,4.7177]
[1760934141238,1.94,190.82,190.73,2.67]
[1760934142646,4.7148,190.84,190.75,2.67]
[1760934144744,1.94,190.86,190.76,4.7167]
[1760934145256,1.94,190.86,190.77,2.67]
[1760934149750,1.94,190.86,190.78,4.7162]
[1760934149951,1.94,190.86,190.79,2.67]
[1760934150955,1.94,190.86,190.75,7.3867]
[1760934152156,1.94,190.86,190.76,2.67]
[1760934152859,1.94,190.86,190.77,2.67]
[1760934154755,1.94,190.84,190.77,2.67]
[1760934155155,5.03831157,190.82,190.68,2.67]
[1760934155354,11.69361157,190.83,190.68,2.67]
[1760934155750,11.69361157,190.83,190.71,4.718]
[1760934155956,11.69361157,190.83,190.72,2.67]
[1760934156153,4.7156,190.82,190.72,2.67]
[1760934157159,5.03831157,190.86,190.69,5.03831157]
[1760934157365,6.83332777,190.87,190.7,2.67]
[1760934157366,1.94,190.87,190.7,2.67]
[1760934157760,1.94,190.87,190.79,2.67]
[1760934158366,1.94,190.91,190.79,2.67]
[1760934159058,4.7135,190.9,190.8,4.7158]
[1760934159655,4.7135,190.9,190.81,4.7153]
[1760934160465,4.7135,190.9,190.81,7.3853]
[1760934161861,1.94,190.89,190.81,7.3853]
[1760934162768,1.94,190.93,190.79,2.67]
[1760934163068,1.94,190.96,190.79,2.67]
[1760934163266,17.78513169,190.96,190.79,2.67]
[1760934163567,1.94,190.96,190.86,7.3841]
[1760934164165,4.7123,190.94,190.86,2.67]
[1760934164365,1.94,190.93,190.86,2.67]
[1760934164962,15.60726598,190.96,190.86,2.67]
[1760934165266,1.94,190.96,190.86,2.67]
[1760934166261,1.94,190.96,190.76,7.34606729]
[1760934166262,17.58727858,190.96,190.76,7.34606729]
[1760934166461,1.94,190.87,190.76,7.34606729]
[1760934166659,1.94,190.87,190.76,2.67]
[1760934166862,6.6543,190.87,190.76,2.67]
[1760934168764,6.6543,190.87,190.77,4.7165]
[1760934169169,1.94,190.87,190.77,4.7165]
[1760934169767,1.94,190.87,190.67,22.49475639]
[1760934169768,1.94,190.87,190.8,2.62]
[1760934170867,8.28395352,190.88,190.76,7.3366]
[1760934171367,1.94,190.87,190.73,4.7173]
[1760934171564,8.28395352,190.88,190.73,4.7173]
[1760934171766,8.28395352,190.88,190.74,2.62]
[1760934171967,1.94,190.87,190.74,2.62]
[1760934172365,4.89332777,190.89,190.74,2.62]
[1760934172673,1.94,190.93,190.76,2.62]
[1760934172877,1.94,190.93,190.77,2.62]
[1760934173373,6.6527,190.93,190.83,7.335]
[1760934174069,1.94,190.9,190.8,4.7157]
[1760934174375,1.94,190.9,190.79,2.62]
[1760934175279,8.28395352,190.91,190.72,4.67606729]
[1760934175479,4.89332777,190.88,190.73,2.62]
[1760934175673,1.94,190.88,190.73,2.62]
[1760934175975,4.89332777,190.89,190.73,2.62]
[1760934176373,1.94,190.87,190.73,2.62]
[1760934177081,4.7144,190.86,190.75,4.717]
[1760934178078,6.6549,190.84,190.75,4.717]
[1760934180280,1.94,190.84,190.76,2.62]
[1760934180881,1.94,190.84,190.73,4.7175]
[1760934181373,8.28395352,190.85,190.73,4.7175]
[1760934181975,4.7153,190.83,190.73,4.7175]
[1760934182783,1.94,190.89,190.76,2.62]
[1760934183082,1.94,190.93,190.76,2.62]
[1760934183580,1.94,190.93,190.83,2.62]
[1760934184177,6.6528,190.93,190.83,7.3348]
[1760934184380,1.94,190.93,190.84,2.62]
[1760934187076,1.94,190.93,190.86,4.7143]
[1760934188478,4.88169004,190.95,190.82,4.7151]
[1760934188685,1.94,190.93,190.82,4.7151]
[1760934189980,6.6526,190.93,190.82,4.7151]
[1760934191578,12.99655352,190.93,190.82,4.7151]
[1760934191773,13.16564356,190.93,190.8,7.3358]
[1760934191979,1.94,190.91,190.8,7.3358]
[1760934192583,1.94,190.9,190.8,7.3358]
[1760934192981,6.6535,190.9,190.8,7.3358]
[1760934195889,1.94,190.87,190.8,2.62]
[1760934196482,6.6543,190.87,190.8,2.62]
[1760934196987,6.6543,190.87,190.77,7.5365]
[1760934198389,4.7146,190.86,190.77,2.82]
[1760934198583,8.28395352,190.85,190.77,2.82]
[1760934198788,1.94,190.84,190.77,2.82]
[1760934199386,6.6548,190.84,190.77,2.82]
[1760934201994,6.6548,190.84,190.73,7.5975]
[1760934202388,6.6548,190.84,190.74,4.7171]
[1760934202594,1.94,190.84,190.75,2.88]
[1760934202994,1.94,190.84,190.77,2.88]
[1760934203494,4.7146,190.86,190.77,2.88]
[1760934203795,1.94,190.88,190.79,2.88]
[1760934203995,44.44,190.91,190.79,2.88]
[1760934204994,4.7136,190.9,190.81,4.7153]
[1760934205190,1.94,190.89,190.82,2.88]
[1760934208808,4.7129,190.92,190.82,2.88]
[1760934209301,4.7129,190.92,190.82,7.5951]
[1760934209503,1.94,190.91,190.82,7.5951]
[1760934210008,1.94,190.91,190.82,2.88]
[1760934210611,4.7134,190.9,190.82,2.88]
[1760934212109,1.94,190.91,190.82,2.88]
[1760934212710,1.94,190.91,190.84,2.88]
[1760934213108,1.94,190.91,190.76,2.88]
[1760934213505,6.6531,190.91,190.82,2.88]
[1760934215210,6.6531,190.91,190.82,7.5951]
[1760934215411,1.94,190.91,190.82,7.5951]
[1760934217313,8.28395352,190.93,190.85,2.88]
[1760934218610,6.82169004,190.94,190.85,2.88]
[1760934219609,1.94,190.93,190.85,2.88]
[1760934222217,6.82169004,190.93,190.85,2.88]
[1760934222416,1.94,190.93,190.85,2.88]
[1760934222716,6.97234167,190.93,190.85,2.88]
[1760934225818,11.85403171,190.93,190.85,2.88]
[1760934226114,1.94,190.92,190.78,2.88]
[1760934226308,6.82169004,190.92,190.78,2.88]
[1760934226507,4.7131,190.91,190.78,2.88]
[1760934226714,2.19601446,190.87,190.79,2.88]
[1760934227117,1.94,190.92,190.79,2.88]
[1760934227118,2.19601446,190.89,190.79,2.88]
[1760934227318,2.19601446,190.89,190.83,4.7149]
[1760934227814,4.88169004,190.95,190.83,2.77]
[1760934228015,2.19601446,190.92,190.83,2.77]
[1760934228210,2.19601446,190.9,190.83,2.77]
[1760934230022,2.19601446,190.9,190.85,4.7146]
[1760934230220,2.19601446,190.9,190.86,2.77]
[1760934230519,2.19601446,190.9,190.87,2.77]
[1760934230716,2.19601446,190.9,190.86,2.77]
[1760934231114,2.19601446,190.9,190.87,2.77]
[1760934231321,2.19601446,190.9,190.86,2.77]
[1760934231523,2.19601446,190.9,190.85,4.7146]
[1760934232121,2.19601446,190.9,190.86,2.77]
[1760934232521,2.19601446,190.9,190.87,2.77]
[1760934232726,2.19601446,190.9,190.88,2.77]
[1760934233323,2.19601446,190.9,190.87,2.77]
[1760934233522,4.88169004,190.97,190.87,2.77]
[1760934233727,2.19601446,190.95,190.87,2.77]
[1760934234229,4.14601446,190.95,190.91,7.4831]
[1760934234817,2.19601446,190.95,190.92,2.77]
[1760934235423,4.14601446,190.95,190.92,2.77]
[1760934235620,4.14601446,190.95,190.87,2.77]
[1760934235825,2.19601446,190.91,190.89,4.7135]
[1760934236026,2.19601446,190.91,190.89,7.4835]
[1760934236923,2.19601446,190.91,190.9,2.77]
[1760934237322,2.19601446,190.91,190.89,4.7135]
[1760934237522,2.19601446,190.91,190.87,2.77]
[1760934237523,2.19601446,190.91,190.88,2.77]
[1760934238433,2.19601446,190.91,190.89,4.7136]
[1760934238728,2.19601446,190.91,190.89,7.4836]
[1760934238917,2.19601446,190.91,190.9,2.77]
[1760934239117,2.19601446,190.93,190.9,2.77]
[1760934239325,2.19601446,190.93,190.91,2.77]
[1760934240224,2.19601446,190.93,190.89,4.7136]
[1760934240528,2.19601446,190.91,190.9,2.77]
[1760934240728,2.19601446,190.93,190.9,2.77]
[1760934241030,2.19601446,190.95,190.9,2.77]
[1760934241326,1.95,190.94,190.9,2.77]
[1760934241528,1.95,190.94,190.91,2.77]
[1760934241828,4.14601446,190.98,190.91,4.7131]
[1760934242029,1.95,190.98,190.91,2.77]
[1760934242229,2.19601446,191.0,190.93,7.4824]
[1760934242629,4.14601446,191.0,190.93,7.4824]
[1760934244229,1.95,191.0,190.94,4.7121]
[1760934244739,4.14601446,191.0,190.94,4.7121]
[1760934245119,1.95,191.0,190.94,4.7121]
[1760934245427,4.14601446,191.0,190.93,2.77]
[1760934245625,2.19601446,190.98,190.89,2.77]
[1760934245829,4.14601446,190.96,190.89,2.77]
[1760934246933,1.95,190.96,190.89,7.4834]
[1760934247133,4.14601446,190.96,190.89,7.4834]
[1760934247930,4.14601446,190.96,190.89,2.77]
[1760934248327,13.7386045,191.0,190.91,2.19601446]
[1760934248532,4.14601446,191.0,190.92,2.77]
[1760934250133,4.7109,191.01,190.94,2.77]
[1760934250134,2.19601446,191.01,190.94,2.77]
[1760934250525,4.14601446,191.01,190.94,2.77]
[1760934254940,1.95,191.01,190.94,7.4821]
[1760934255637,4.14601446,191.01,190.94,7.4821]
[1760934256038,1.94,190.98,190.93,2.6]
[1760934256239,1.94,190.98,190.94,2.6]
[1760934256829,2.19601446,190.99,190.93,2.6]
[1760934257530,4.13601446,190.99,190.93,2.6]
[1760934259838,4.13601446,190.97,190.9,7.3233]
[1760934260534,4.7111,191.0,190.93,2.61]
[1760934260535,2.19601446,191.0,190.93,2.61]
[1760934260739,2.19601446,191.01,190.93,2.61]
[1760934261641,2.19601446,191.01,190.94,4.7122]
[1760934262134,6.6504,191.02,190.93,2.61]
[1760934262135,2.19601446,190.99,190.93,2.61]
[1760934262534,2.19601446,191.01,190.93,2.61]
[1760934262732,2.19601446,191.02,190.94,2.19601446]
[1760934262938,4.13601446,191.03,190.95,2.61]
[1760934264028,4.13601446,191.03,190.96,4.7118]
[1760934265041,2.19601446,191.01,190.93,7.3225]
[1760934265244,2.19601446,191.01,190.93,2.61]
[1760934266640,2.19601446,190.99,190.94,4.7121]
[1760934266836,4.13601446,190.99,190.94,4.7121]
[1760934267031,4.13601446,190.99,190.95,2.61]
[1760934267234,1.94,190.99,190.95,2.61]
[1760934267638,4.13601446,190.99,190.95,2.61]
[1760934269342,4.13601446,191.01,190.95,4.7119]
[1760934269542,4.13601446,191.01,190.95,7.3219]
[1760934270440,1.94,191.0,190.95,4.7119]
[1760934270644,1.94,190.98,190.95,4.7119]
[1760934270839,2.19601446,190.99,190.95,4.7119]
[1760934271438,1.94,190.98,190.95,4.7119]
[1760934272341,4.13601446,190.99,190.95,7.3219]
[1760934274548,1.94,190.99,190.95,7.3219]
[1760934274751,2.19601446,191.01,190.95,7.3219]
[1760934275057,4.13601446,191.01,190.97,2.61]
[1760934275745,2.19601446,190.99,190.79,4.68587592]
[1760934276045,4.13601446,190.84,190.74,6.88189038]
[1760934276246,4.13601446,190.84,190.76,2.61]
[1760934276451,39.86,190.9,190.71,4.68587592]
[1760934276452,1.94,190.79,190.71,4.68587592]
[1760934276747,1.94,190.79,190.72,2.61]
[1760934276950,1.94,190.79,190.67,2.61]
[1760934277151,1.94,190.79,190.69,2.61]
[1760934277554,1.94,190.79,190.7,4.7183]
[1760934277745,2.19601446,190.73,190.71,2.61]
[1760934277941,2.19601446,190.73,190.72,2.61]
[1760934278447,2.19601446,190.76,190.72,2.61]
[1760934278946,2.19601446,190.74,190.67,4.7189]
[1760934279152,2.19601446,190.74,190.67,7.3289]
[1760934279553,2.19601446,190.74,190.69,4.7185]
[1760934279757,2.19601446,190.74,190.71,2.61]
[1760934280251,2.19601446,190.78,190.7,2.61]
[1760934280455,1.94,190.8,190.72,2.19601446]
[1760934281654,6.52443702,190.88,190.66,106.13914792]
[1760934281655,2.19601446,190.75,190.66,110.85824792]
[1760934281850,2.19601446,190.75,190.67,2.19601446]
[1760934282051,1.94,190.74,190.67,2.19601446]
[1760934282748,1.94,190.74,190.66,108.74914792]
[1760934283259,1.94,190.74,190.67,5.76]
[1760934283854,1.94,190.74,190.67,9.19674722]
[1760934284749,1.94,190.74,190.67,5.76]
[1760934286754,1.94,190.77,190.68,2.61]
[1760934288860,1.94,190.77,190.71,2.73]
[1760934289562,1.94,190.83,190.71,2.73]
[1760934290962,1.94,190.83,190.71,7.4479]
[1760934292252,1.94,190.83,190.72,2.73]
[1760934292755,6.6551,190.83,190.72,2.73]
[1760934293761,1.94,190.82,190.72,2.73]
[1760934293960,1.94,190.8,190.72,2.73]
[1760934295163,4.88828209,190.84,190.69,5.32]
[1760934295357,1.94,190.81,190.69,5.32]
[1760934295566,4.88828209,190.83,190.69,5.32]
[1760934295761,6.6566,190.77,190.69,5.32]
[1760934297362,1.94,190.77,190.7,2.73]
[1760934297564,1.94,190.83,190.69,5.32]
[1760934297868,4.88828209,190.84,190.69,5.32]
[1760934298261,1.94,190.82,190.69,5.32]
[1760934298455,4.88828209,190.83,190.69,5.32]
[1760934298864,1.94,190.82,190.69,5.32]
[1760934299057,4.88828209,190.83,190.69,5.32]
[1760934299264,1.94,190.82,190.69,5.32]
[1760934299959,1.94,190.76,190.69,5.32]
[1760934300164,4.88828209,190.83,190.69,5.32]
[1760934300465,4.88828209,190.82,190.7,2.73]
[1760934300661,6.82828209,190.86,190.75,2.73]
[1760934300862,1.94,190.86,190.75,2.73]
[1760934301261,4.88828209,190.9,190.75,2.73]
[1760934301460,1.94,190.84,190.75,2.73]
[1760934301873,6.654,190.88,190.75,2.73]
[1760934302466,1.94,190.91,190.81,2.73]
[1760934302971,4.7123,190.95,190.83,2.73]
[1760934303161,1.94,190.94,190.83,2.73]
[1760934303369,1.94,190.94,190.56,18.64043426]
[1760934303370,1.94,190.91,190.69,8.29650549]
[1760934303563,6.6554,190.82,190.7,2.73]
[1760934303863,4.88828209,190.87,190.7,2.73]
[1760934304058,1.94,190.85,190.7,2.73]
[1760934304259,4.7159,190.8,190.7,2.73]
[1760934304466,4.7159,190.8,190.71,5.15]
[1760934305569,4.7152,190.83,190.72,2.73]
[1760934305868,4.7152,190.83,190.73,2.73]
[1760934309074,4.7156,190.81,190.73,2.73]
[1760934310676,6.6561,190.79,190.73,2.73]
[1760934311263,1.94,190.79,190.73,2.73]
[1760934311871,1.94,190.79,190.74,8.75]
[1760934312671,6.6559,190.8,190.74,8.75]
[1760934312871,6.6559,190.8,190.74,6.02]
[1760934313270,4.88828209,190.83,190.74,6.02]
[1760934313467,1.94,190.85,190.75,2.73]
[1760934313868,4.7154,190.82,190.75,2.73]
[1760934314564,4.7148,190.84,190.75,2.73]
[1760934315170,1.94,190.85,190.76,2.69]
[1760934316375,1.94,190.85,190.77,2.69]
[1760934317377,3.79181019,190.84,190.77,2.69]
[1760934317576,3.79181019,190.83,190.77,2.69]
[1760934317777,3.79181019,190.82,190.75,2.62]
[1760934318077,3.79181019,190.81,190.75,2.62]
[1760934318273,3.79181019,190.8,190.75,2.62]
[1760934318478,3.79181019,190.79,190.75,2.62]
[1760934318778,4.88828209,190.84,190.75,2.62]
[1760934318977,3.80008238,190.83,190.75,2.62]
[1760934319177,3.80008238,190.82,190.75,2.62]
[1760934319368,3.80008238,190.81,190.75,2.62]
[1760934319573,3.80008238,190.8,190.75,2.62]
[1760934319876,3.80008238,190.79,190.75,2.62]
[1760934320070,4.88828209,190.84,190.75,2.62]
[1760934320271,4.88828209,190.82,190.75,2.62]
[1760934320470,3.8054813,190.81,190.75,2.62]
[1760934320667,3.8054813,190.8,190.75,2.62]
[1760934320872,3.8054813,190.79,190.75,4.7168]
[1760934321179,4.88828209,190.82,190.76,2.62]
[1760934323281,4.88828209,190.83,190.76,2.62]
[1760934325983,4.88828209,190.83,190.76,7.3366]
[1760934326384,1.94,190.83,190.76,7.3366]
[1760934326582,4.88828209,190.82,190.76,7.3366]
[1760934327683,4.88828209,190.82,190.76,2.62]
[1760934327878,1.94,190.8,190.74,6.02]
[1760934328187,1.94,190.75,190.74,6.02]
[1760934330789,6.82814864,190.75,190.74,6.02]
[1760934331383,1.94,190.75,190.74,6.02]
[1760934332286,6.52443702,190.78,190.74,6.02]
[1760934332287,4.88814864,190.77,190.74,6.02]
[1760934332484,4.88814864,190.77,190.74,8.64]
[1760934332691,6.82814864,190.77,190.74,6.02]
[1760934335396,1.94,190.77,190.74,6.02]
[1760934337294,1.94,190.77,190.71,7.77]
[1760934338695,4.7174,190.74,190.71,5.15]
[1760934338902,1.94,190.73,190.71,5.15]
[1760934339599,6.82814864,190.74,190.71,5.15]
[1760934340497,6.82814864,190.74,190.72,5.98]
[1760934340796,1.94,190.73,190.72,5.98]
[1760934343105,4.88814864,190.74,190.72,5.98]
[1760934343295,11.54534864,190.75,190.72,5.98]
[1760934343494,1.94,190.74,190.72,5.98]
[1760934344494,4.88814864,190.76,190.73,2.62]
[1760934344698,6.82814864,190.78,190.73,2.62]
[1760934344891,1.94,190.77,190.73,2.62]
[1760934345089,1.94,190.76,190.72,5.98]
[1760934345391,6.82814864,190.76,190.72,8.6]
[1760934345994,1.94,190.75,190.72,5.98]
[1760934346198,6.52443702,190.79,190.72,5.98]
[1760934346199,6.82814864,190.74,190.72,5.98]
[1760934346498,1.94,190.73,190.72,5.98]
[1760934348804,4.13990419,190.73,190.72,5.98]
[1760934349003,9.02805283,190.73,190.72,5.98]
[1760934351305,6.82814864,190.73,190.72,5.98]
[1760934351506,2.19990419,190.73,190.72,5.98]
[1760934351703,8.12805283,190.73,190.65,2.873121]
[1760934351908,2.19990419,190.66,190.65,2.873121]
[1760934352603,17.73970199,190.66,190.65,2.873121]
[1760934352904,2.19990419,190.66,190.65,2.873121]
[1760934353706,6.83814864,190.69,190.65,5.683121]
[1760934354011,2.19990419,190.67,190.65,5.683121]
[1760934354596,2.19990419,190.67,190.65,2.873121]
[1760934355501,2.19990419,190.69,190.65,2.873121]
[1760934355705,2.19990419,190.69,190.66,2.81]
[1760934355906,2.19990419,190.67,190.65,2.873121]
[1760934356108,2.19990419,190.67,190.65,5.683121]
[1760934356505,2.19990419,190.69,190.65,5.683121]
[1760934356697,2.19990419,190.69,190.66,2.81]
[1760934357109,2.19990419,190.69,190.65,2.873121]
[1760934357313,2.19990419,190.69,190.66,2.81]
[1760934357706,2.19990419,190.69,190.65,2.873121]
[1760934357908,4.88814864,190.72,190.66,2.81]
[1760934358110,4.88814864,190.74,190.67,2.81]
[1760934358309,15.36583878,190.75,190.67,2.81]
[1760934358499,2.19990419,190.76,190.67,2.81]
[1760934359307,2.19990419,190.76,190.68,2.81]
[1760934359604,2.19990419,190.77,190.68,2.81]
[1760934359805,4.88814864,190.78,190.68,2.81]
[1760934360008,4.88814864,190.78,190.7,2.81]
[1760934360506,20.94940846,190.78,190.7,2.81]
[1760934360706,20.94940846,190.78,190.71,2.19990419]
[1760934361212,22.89940846,190.78,190.72,2.81]
[1760934361405,20.94940846,190.78,190.72,2.81]
[1760934361607,4.88814864,190.82,190.74,2.81]
[1760934361801,9.03805283,190.82,190.74,2.81]
[1760934362001,4.88814864,190.82,190.76,2.81]
[1760934362207,74.73340138,190.83,190.78,2.81]
[1760934362712,74.73340138,190.83,190.72,5.03472926]
[1760934362903,44.38,190.84,190.73,2.81]
[1760934363500,44.38,190.84,190.76,4.7168]
[1760934363707,4.88814864,190.86,190.77,2.81]
[1760934363915,4.88814864,190.87,190.77,2.81]
[1760934364615,6.83814864,190.85,190.77,2.81]
[1760934364913,4.88814864,190.84,190.77,2.81]
[1760934365218,6.83814864,190.84,190.7,2.81]
[1760934366110,4.7151,190.83,190.7,2.81]
[1760934367317,6.83814864,190.84,190.73,4.7175]
[1760934367616,6.83814864,190.84,190.74,2.81]
[1760934367815,1.95,190.84,190.74,2.81]
[1760934368411,1.95,190.84,190.75,4.7169]
[1760934368605,1.95,190.84,190.76,2.81]
[1760934369618,6.83814864,190.84,190.76,2.81]
[1760934370825,4.88814864,190.85,190.76,2.81]
[1760934371626,6.83814864,190.85,190.76,2.81]
[1760934372327,1.95,190.85,190.76,2.81]
[1760934372818,1.95,190.85,190.77,4.7166]
[1760934373721,6.83814864,190.85,190.77,4.7166]
[1760934374224,6.83814864,190.85,190.78,2.61]
[1760934375730,1.95,190.85,190.79,4.716]
[1760934375929,4.88814864,190.86,190.79,4.716]
[1760934376326,4.88814864,190.87,190.79,4.716]
[1760934376932,4.88814864,190.87,190.8,2.61]
[1760934377725,6.82814864,190.88,190.8,2.61]
[1760934378120,6.82814864,190.88,190.81,4.7156]
[1760934378326,1.94,190.88,190.82,2.72]
[1760934378933,54.3028779,190.9,190.82,2.72]
[1760934379234,69.8451132,190.9,190.82,2.72]
[1760934380133,54.3028779,190.9,190.82,2.72]
[1760934381336,49.41472926,190.9,190.82,2.72]
[1760934381538,1.94,190.89,190.82,2.72]
[1760934381738,1.94,190.89,190.79,2.72]
[1760934382134,1.94,190.89,190.82,2.72]
[1760934382737,2.19611531,190.87,190.81,4.7156]
[1760934382926,2.19611531,190.87,190.83,2.72]
[1760934383131,2.19611531,190.87,190.82,2.72]
[1760934383334,44.38,190.9,190.85,2.72]
[1760934383639,2.19611531,190.9,190.84,7.4346]
[1760934384436,2.19611531,190.92,190.86,4.7143]
[1760934384642,4.13611531,190.92,190.88,2.72]
[1760934385240,2.19611531,190.9,190.84,2.72]
[1760934385636,2.19611531,190.9,190.86,2.72]
[1760934386636,2.19611531,190.9,190.85,5.17]
[1760934386835,4.7129,190.92,190.85,5.17]
[1760934386836,1.94,190.87,190.85,5.17]
[1760934387240,2.19611531,190.88,190.85,5.17]
[1760934387644,2.19611531,190.88,190.85,7.89]
[1760934387941,2.19611531,190.9,190.85,7.89]
[1760934388136,4.13611531,190.9,190.85,7.89]
[1760934388537,4.13611531,190.9,190.85,5.17]
[1760934388742,4.13611531,190.9,190.86,2.72]
[1760934389142,4.13611531,190.9,190.87,4.49]
[1760934391044,2.19611531,190.9,190.87,4.49]
[1760934391249,1.94,190.89,190.87,4.49]
[1760934392738,22.66522081,190.93,190.87,4.49]
[1760934392940,4.13611531,190.9,190.87,4.49]
[1760934393244,2.19611531,190.88,190.87,4.49]